Cogmind - Beta 15 @@@ ROGUE MODE // 2025.05.08 @ 16:13:58 Player: potator Result: Destroyed by G-47 Trooper with Particle Gun Performance ------------- Evolutions (0) 0 Regions Visited (1) 200 Robots Destroyed (6) 30 Value Destroyed (137) 137 Prototype IDs (0) 0 Alien Tech Used (0) 0 Bonus (0) 0 TOTAL SCORE: 367 Bonus ------- None Cogmind --------- Core Integrity 0/250 Matter 183/300 Energy 121/125 System Corruption 3% Temperature Cool (27) Movement Rolling (80) Location -10/Materials Parts ------- > --- POWER (1) -------- Light Ion Engine > --- PROPULSION (2) --- Wheel Wheel > --- UTILITY (2) ------ Small Storage Unit Seismic Detector > --- WEAPON (2) ------- Light Assault Rifle Grenade Launcher > --- INVENTORY (8) ---- (None) Peak State ------------ > --- POWER ------------ Light Ion Engine > --- PROPULSION ------- Wheel Wheel > --- UTILITY ---------- Small Storage Unit Improved Terrain Scanner > --- WEAPON ----------- Light Assault Rifle > --- INVENTORY -------- (None) [Rating: 8] Favorites ----------- Power Ion Engine Engine Ion Engine Propulsion Aluminum Leg Leg Aluminum Leg Wheel Wheel Utility Improved Terrain Scanner Device Improved Terrain Scanner Storage Small Storage Unit Weapon Light Assault Rifle Ballistic Gun Light Assault Rifle Launcher Grenade Launcher Build | -11 -10 ------- Run | Yrd Mat Slots Evolved . | . . Power . | . . Propulsion . | . . Utility . | . . Weapon . | . . Parts Attached 14 | 13 1 Power 2 | 2 . Engine 2 | 2 . Core . | . . Reactor . | . . Propulsion 4 | 4 . Treads . | . . Leg 2 | 2 . Wheel 2 | 2 . Hover . | . . Flight . | . . Utility 4 | 4 . Device 3 | 3 . Storage 1 | 1 . Processor . | . . Hackware . | . . Protection . | . . Artifact . | . . Weapon 4 | 3 1 Energy Gun . | . . Energy Cannon . | . . Ballistic Gun 3 | 3 . Ballistic Cannon . | . . Launcher 1 | . 1 Special Weapon . | . . Impact Weapon . | . . Slashing Weapon . | . . Piercing Weapon . | . . Special Melee Weapon . | . . Unidentified Prototypes . | . . Parts Lost 6 | 6 . Power 1 | 1 . Propulsion 2 | 2 . Utility 1 | 1 . Weapon 2 | 2 . Highest Loss Streak 3 | 3 . To Critical Strikes . | . . Average Backups . | . . Power . | . . Propulsion . | . . Utility . | . . Weapon . | . . Tool/Special . | . . Unused Backups . | . . Power . | . . Propulsion . | . . Utility . | . . Weapon . | . . Tool/Special . | . . Average Slot Usage (%) 90 | . 90 Engine 14 | . 14 Wheel 28 | . 28 Device 14 | . 14 Storage 14 | . 14 Ballistic Gun 14 | . 14 Launcher 4 | . 4 Peak Build Rating 8 | 8 7 Average Rating 5 | 5 6 On Entrance 3 | . 6 Naked Turns . | . . Heaviest Build 13 | 10 13 Greatest Support 20 | 20 20 Greatest Overweight (x) 1 | 1 . Average Overweight (x) . | . . Largest Inventory Capacity 8 | 8 8 Average Capacity 5 | 5 8 Most Carried 3 | 3 1 Average Carried . | . . Final Capacity 8 | 8 8 Final Carried . | . . Class Distribution -------------------- 100% | Mutant Dominant Class ---------------- Mutant | -10/Materials Resources | -11 -10 ----------- Run | Yrd Mat Matter Collected 404 | 404 . Remotely . | . . Salvage Created 156 | 87 69 Parts 10 | . 10 Haulers Intercepted . | . . Recyclers Shooed . | . . Parts Field Recycled . | . . Retrieved Matter . | . . Parts Self-Destructed . | . . Prevented . | . . Kills | -11 -10 ------- Run | Yrd Mat Combat Hostiles Destroyed 12 | 7 5 Guns 7 | 7 . AOE 5 | . 5 Classes Destroyed 4 | 1 3 Operator 1 | . 1 Swarmer 3 | . 3 Grunt 2 | . 2 Assembled 7 | 7 . Best Kill Streak 6 | 3 6 Combat Bots Only 5 | 3 5 Max Kills in Single Turn 2 | 1 2 Gunslinging . | . . Exploded 2 | . 2 Melee . | . . Uniques/NPCs Destroyed . | . . Combat | -11 -10 -------- Run | Yrd Mat Hostile Shots Fired 57 | 41 16 Missed 18 | 12 6 Hits 39 | 29 10 Melee 18 | 18 . Projectile 21 | 11 10 Critical Strikes 4 | 2 2 Part Disruptions 2 | 2 . Damage Taken 775 | 643 132 Core 266 | 226 40 Absorbed by Shields . | . . Core Remaining (%) 9 | 9 . Volleys Fired 50 | 42 8 Largest 2 | 2 2 Hottest 50 | 40 50 Shots Fired 93 | 77 16 Gun 85 | 77 8 Cannon . | . . Launcher 8 | . 8 Special . | . . Kinetic 85 | 77 8 Thermal . | . . Explosive 8 | . 8 Electromagnetic . | . . Robot Hit Streak 6 | 6 6 Robot Miss Streak 5 | 5 3 Penetration Max . | . . Secondary Targets 3 | 3 . Max Gunslinging Chain 1 | 1 . Shots Hit Robots 53 | 45 8 Core Hits 27 | 18 9 Critical Kills 1 | 1 . Critical Parts Destroyed . | . . Critical Strikes 1 | 1 . Destroy 1 | 1 . Melee Attacks . | . . Impact . | . . Slashing . | . . Piercing . | . . Sneak Attacks . | . . Combat Hostiles . | . . Follow-up Attacks . | . . Damage Inflicted 824 | 373 451 Guns 398 | 373 25 Cannons . | . . Explosions 426 | . 426 Melee . | . . Ramming . | . . Kinetic 398 | 373 25 Thermal . | . . Explosive 426 | . 426 Electromagnetic . | . . Impact . | . . Slashing . | . . Piercing . | . . Highest Corruption 3 | 2 3 Average Corruption 2 | 1 2 Corruption Purged . | . . Corruption Blocked . | . . Effects 17 | 15 2 Message Errors 7 | 6 1 Matter Fused 4 | 3 1 Data Loss (minor) 2 | 2 . Data Loss (major) 1 | 1 . Misfires 1 | 1 . Alerts 1 | 1 . Weapon Failures 1 | 1 . Overload Shots . | . . Overflow Damage 24 | . 24 Projectiles . | . . Explosions 24 | . 24 Melee . | . . Knockbacks . | . . Impact . | . . Kinetic . | . . Secondary . | . . Self-Inflicted Damage 28 | . 28 Shots 1 | . 1 Rammed . | . . Targets Rammed . | . . Kicked . | . . Crushed . | . . Highest Temperature 58 | 20 58 Average Temperature 16 | 11 20 Received Heat Transfer 255 | 180 75 Siege Activations . | . . Martial Activations . | . . Shielding Activations . | . . Robots Disrupted . | . . Combat Hostiles . | . . Robots Corrupted . | . . Combat Hostiles . | . . Parts Fried . | . . Impact Corruptions . | . . Robots Melted . | . . Combat Hostiles . | . . Parts Melted . | . . Heat Transferred . | . . Parts Sabotaged . | . . Parts Stolen . | . . Parts Stripped . | . . Power Chain Reactions . | . . Alert | -11 -10 ------- Run | Yrd Mat Maximum Alert Level . | . . Low Security (%) 100 | 100 100 Level 1 . | . . Level 2 . | . . Level 3 . | . . Level 4 . | . . Level 5 . | . . High Security . | . . Max Security . | . . Peak Influence 165 | . 165 Initial . | . . Average 1 | . 43 Influence Increases 179 | . 179 Destroy 0b10 Robot/C 100 | . 100 Destroy 0b10 Robot/NC 5 | . 5 Destroy Leader 20 | . 20 Successful Hack 4 | . 4 Disable Machine 15 | . 15 Destroy Structure 35 | . 35 Influence Decreases 20 | . 20 Time Decay 20 | . 20 Squads Dispatched . | . . Investigation . | . . Extermination . | . . Reinforcement . | . . Assault . | . . Garrison . | . . Intercept . | . . Searches Triggered . | . . Construction Impeded . | . . Haulers Reinforced . | . . Active Scanning Responses . | . . Cargo Convoy Interrupts . | . . Stealth | -11 -10 --------- Run | Yrd Mat Distress Signals . | . . Communications Jammed . | . . Distress Signals . | . . Times Spotted 15 | 7 8 Peak Tracking Total 3 | 3 3 Tactical Retreats . | . . Traps | -11 -10 ------- Run | Yrd Mat Traps Triggered 1 | . 1 Indirectly . | . . Trap Hack Attempts . | . . Triggered . | . . Disarmed . | . . Reprogrammed 1 | . 1 Reused . | . . Traps Extracted . | . . Installed . | . . Triggered . | . . Machines | -11 -10 ---------- Run | Yrd Mat Machines Disabled 1 | . 1 Max in Single Turn 1 | . 1 Machines Repaired . | . . Machines Dismantled . | . . Machines Sabotaged . | . . Overloaded Fab Kills . | . . Hacking | -11 -10 --------- Run | Yrd Mat Machines Accessed 2 | . 2 Terminals 2 | . 2 Fabricators . | . . Repair Stations . | . . Recycling Units . | . . Scanalyzers . | . . Garrison Access . | . . Total Hacks 8 | . 8 Successful 5 | . 5 Failed 3 | . 3 Catastrophic 1 | . 1 Database Lockouts . | . . Manual . | . . Terminals 8 | . 8 Fabricators . | . . Repair Stations . | . . Recycling Units . | . . Scanalyzers . | . . Garrison Access . | . . Terminal Hacks 5 | . 5 Emergency Access Points 1 | . 1 Alert Level 1 | . 1 Locate Traps 1 | . 1 Reprogram Traps 1 | . 1 Dispatch Records 1 | . 1 Fabricator Hacks . | . . Repair Station Hacks . | . . Recycling Unit Hacks . | . . Scanalyzer . | . . Garrison Access Hacks . | . . Unauthorized Hacks . | . . Terminals . | . . Fabricators . | . . Repair Stations . | . . Recycling Units . | . . Scanalyzers . | . . Garrison Access . | . . Data Cores Recovered 1 | . 1 Used . | . . Hacking Detections 2 | . 2 Full Trace Events . | . . Feedback Events . | . . Feedback Blocked . | . . Robot Schematics Acquired . | . . Robots Built . | . . Authchips . | . . Time . | . . Total Robot Build Rating . | . . Part Schematics Acquired . | . . Parts Built . | . . Authchips . | . . Time . | . . Total Part Build Rating . | . . Parts Repaired . | . . Time . | . . Parts Recycled . | . . Recycled Matter . | . . Retrieved Matter . | . . Retrieved Components . | . . Parts Scanalyzed . | . . Part Schematics Acquired . | . . Parts Damaged . | . . Bothacking | -11 -10 ------------ Run | Yrd Mat Used RIF Installer . | . . Robots Hacked . | . . Non-combat . | . . Combat . | . . Robot Hacks Applied . | . . Relay Couplers Released . | . . Fabnet Peak Effective % . | . . Robots Rewired . | . . Allies Hacked . | . . Hacks Repelled . | . . Allies | -11 -10 -------- Run | Yrd Mat Total Allies . | . . Largest Group . | . . Highest-Rated Group . | . . Highest-Rated Ally . | . . Total Orders . | . . Ally Attacks . | . . Total Damage . | . . Kills . | . . Allies Corrupted . | . . Allies Melted . | . . Intel | -11 -10 ------- Run | Yrd Mat Active Infowar (turns) 843 | 729 114 Terrain 634 | 634 . Seismic 209 | 95 114 Robot Analysis Total . | . . Derelict Logs Recovered . | . . Drone Launches . | . . Drone Recoveries . | . . Exploration | -11 -10 ------------- Run | Yrd Mat Turns Passed 3863 | 3749 114 Spaces Moved 1781 | 1670 111 Core 64 | 64 . Treads . | . . Legs 1253 | 1253 . Wheels 464 | 353 111 Hover . | . . Flight . | . . Fastest Speed 50 | 50 80 Average Speed 107 | 109 80 Slowest Speed 120 | 120 80 Overloaded Moves . | . . Propulsion Burnouts . | . . Robots Hopped . | . . Potential Cave-ins . | . . Cave-ins Triggered . | . . Exploration Rate (%) 76 | 116 37 Regions Visited 1 Branch Regions . Pre-discovered Areas . | . . Known Exits Taken . | . . Unknown Exits Taken 1 | 1 . Scrap Searched . | . . Spaces Dug . | . . Terrain Destroyed 34 | . 34 Melee . | . . Projectile . | . . AOE 34 | . 34 Terrain Rammed . | . . Walls Destroyed . | . . Machines Disabled . | . . Actions | -11 -10 --------- Run | Yrd Mat Total 3654 | 3531 123 Wait 1793 | 1793 . Move 1780 | 1669 111 Hop . | . . Pick Up 14 | 13 1 Fast Attach . | . . Attach 14 | 12 2 Detach 1 | . 1 Swap 1 | 1 . Drop 1 | 1 . Fire 50 | 42 8 Melee . | . . Ram . | . . Kick . | . . Crush . | . . Escape Stasis . | . . Rewire . | . . Trap . | . . Miscellaneous . | . . Route ------- -11/Scrapyard -10/Materials History --------- Turn | Location | Event 4 | -11/Scrapyard | Discovered new exit (range 16) 2741 | -11/Scrapyard | Assembled infested the area 3441 | -11/Scrapyard | Core integrity fell below 50% 3455 | -11/Scrapyard | Core integrity fell below 20% 3471 | -11/Scrapyard | Lost 3 parts (1n2w) 3750 | -11/Scrapyard | Entered Materials 3751 | -10/Materials | Build established: Mutant 3864 | -10/Materials | Destroyed by G-47 Trooper with Particle Gun Last Messages --------------- O-16 Technician destroyed. The unstable cave ceiling collapses. Acquired data core, extracted dynamic key. Decrypted 5 local trap positions from data. Connecting with Terminal... >>Traps(Locate) Found 6 traps in 2 arrays: 1x Shock Trap 5x Alarm Trap Map updated. >>Alert(Check) Current Alert Level: Low Security >>Access(Emergency) Found 1 emergency access door: (29,60) Map updated. >>Traps(Reprogram) Reprogrammed 1 Shock Trap. K-01 Serf collects debris. Critical hit (Burn: +37). Map ----- +----------------------------------------------------+ | ?# """ """ #?# ####### #?????????????? | | ?# """ """ ## ?? #?????????????? | | ?# ^^ =%[ ?? #?????????????? | | ?# ^^ *%= ?? +?????????????? | | ?# ^ ?? #?????????????? | | ?# ###+####+##### ???????????????????? | | ?# # T #?## ????????????????????? | | ?? ?# """ #????? ????????????????????? | | ?????# """ #??????? ???? ????????????????? | | ?????# """ ############## ??????????????? | | ?# ??# ## #?????????????? | | ?# ##+#+#####+#### ????????????? | | ?# ???### ##?# ????????????? | | ## ### #?# ???????????? | | #T #?# ???????????? | | ?# #?# ???????????? | | ?# #### !!! ???????????? | | !!! ??????????? | | !! ??????????? | | * ??????????? | | ??????????? | | ###### T ### #####?????????????????? | | ?????#######?# #?????????????????????? | | ??????????????# #?????????????????????? | | ? ???????????????# #?????????????????????? | | ? ???????????????# @ #?????????????????????? | | ??""" ????????????????# #?????????????????????? | | ????" ?????????????????# #?????????????????????? | | ????"??????????????????# #?????????????????????? | | ???????????????????????# #?????????????????????? | | ???????????????????????# #?????????????????????? | | ???????????????????????# #?????????????????????? | | ???????????????????????# ?????????????????????? | | ???????????????????????+ ?????????????????????? | | ???????????????????????# ?????????????????????? | | ???????????????????????# g ?????????????????????? | | ???????????????????????# g ????????????????????? | | ?????????????????????+?# =????????????????????? | | ???????????????????????? %????????????????????? | | ???????????????????????? !????????????????????? | | ???????????????????????? ?????????????????????? | | ?????????????????????????????????????????????????? | | ?????????????????????????????????????????????????? | | ?????????????????????????????????????????????????? | | ?????????????????????????????????????????????????? | | ?????????????????????????????????????????????????? | | ?????????????????????????????????????????????????? | | ?????????????????????????????????????????????????? | | ?????????????????????????????????????????????????? | | ?????????????????????????????????????????????????? | +----------------------------------------------------+ Best States ------------- Heat Dissipation 25 Energy Generation 10 Energy Capacity 250 Matter Stores 300 Matter Capacity 300 Sight Range 16 Terrain Scan Range 16 Terrain Scan Density 10 Evasion (%) 55 Item Schematics ----------------- None Robot Schematics ------------------ None Fabricated ------------ Nothing Repaired ---------- Nothing Alien Tech Used ----------------- None Achievements -------------- Curiosity Killed The Cat Challenges ------------ None Game ------ Seed ReactionFireMace Manual? 0 Play Time 00:14:35 Cumulative 18.2 hours Start 2025.05.08 @ 16:01:10 End 2025.05.08 @ 16:13:58 Sessions 1 Manual Loads 0 Difficulty Rogue Special Mode None Game No. 37 Rogue 37 Adventurer 0 Explorer 0 Win Type - Total 0 Types 0/0/0/0/0/0/0/0/0/0 Lore% 9 Gallery% 17 Achievement% 16 Wizard Run 0 Options --------- Layout 1 ASCII 0 Keyboard 0 Movement Mouse Keybinds 0 Fullscreen 2 Font 24/Smallcaps Map View 50x35 Zoom Use 0% Tactical HUD 0 Map Filters NONE Filters NONE Steam 1 RUN: 7afc76f7-c1a7-4ca2-a670-607cd1f75085